fUST/lending_fUST_20240924
["ID","MTS","AMOUNT","RATE_DAILY","PERIOD"]
[339018603,1727130671638,-1463.58,0.00033287,30]
[339018604,1727130671647,-500.0,0.00033287,30]
[339018605,1727130671656,-353.67249999,0.00033287,30]
[339018606,1727130671666,-1844.92,0.00033287,30]
[339018607,1727130671674,-612.36,0.00033287,30]
[339018608,1727130671683,-500.0,0.00033287,30]
[339018609,1727130671692,-500.0,0.00033287,30]
[339018610,1727130671701,-500.0,0.00033287,7]
[339018611,1727130671711,-500.0,0.00033287,30]
[339018612,1727130671720,-500.0,0.00033287,30]
[339018613,1727130671730,-500.0,0.00033287,30]
[339018614,1727130671739,-500.0,0.00033287,30]
[339018615,1727130671749,-500.0,0.00033287,30]
[339018616,1727130671758,-500.0,0.00033287,30]
[339018617,1727130671768,-500.0,0.00033287,30]
[339018618,1727130671777,-500.0,0.00033287,30]
[339018619,1727130671787,-500.0,0.00033287,30]
[339018620,1727130671796,-500.0,0.00033287,30]
[339018621,1727130671806,-500.0,0.00033287,30]
[339018622,1727130671818,-1266.01,0.00033287,30]
[339018623,1727130671827,-500.0,0.00033287,30]
[339018624,1727130671836,-500.0,0.00033287,30]
[339018625,1727130671845,-1200.54,0.00033287,30]
[339018626,1727130671856,-500.0,0.00033287,30]
[339018627,1727130671865,-501.9,0.00033287,30]
[339018628,1727130671874,-500.0,0.00033287,30]
[339018629,1727130671885,-500.0,0.00033287,30]
[339018630,1727130671895,-1081.62,0.00033287,30]
[339018631,1727130671904,-500.0,0.00033287,30]
[339018632,1727130671914,-508.43863048,0.00033287,30]
[339018633,1727130671923,-500.0,0.00033287,30]
[339018634,1727130671932,-500.0,0.00033287,30]
[339018635,1727130671942,-432.58358591,0.00033287,30]
[339018636,1727130671951,-500.0,0.00033287,30]
[339018637,1727130671960,-500.0,0.00033287,30]
[339018638,1727130671970,-500.0,0.00033287,30]
[339018639,1727130671980,-253.4851144,0.00033287,30]
[339018640,1727130671989,-500.0,0.00033287,30]
[339018641,1727130671998,-550.60234852,0.00033287,30]
[339018642,1727130672008,-500.0,0.00033287,30]
[339018643,1727130672017,-1820.79,0.00033287,7]
[339018644,1727130672026,-500.0,0.00033287,30]
[339018645,1727130672035,-694.3,0.00033287,30]
[339018646,1727130672044,-500.0,0.00033287,30]
[339018647,1727130672053,-589.25054199,0.00033287,30]
[339018648,1727130672062,-500.0,0.00033287,30]
[339018649,1727130672072,-500.0,0.00033287,30]
[339018650,1727130672081,-500.0,0.00033287,30]
[339018651,1727130672090,-500.0,0.00033287,30]
[339018652,1727130672100,-1532.58,0.00033287,30]
[339018653,1727130672109,-173.55800587,0.00033287,30]
[339018654,1727130672119,-1035.06,0.00033287,30]
[339018655,1727130672128,-40342.48,0.00033287,18]
[339018656,1727130672138,-500.0,0.00033287,30]
[339018657,1727130672148,-500.0,0.00033287,2]
[339018658,1727130672157,-736.16,0.00033287,30]
[339018659,1727130672166,-500.0,0.00033287,30]
[339018660,1727130672176,-500.0,0.00033287,30]
[339018661,1727130672186,-712.0,0.00033339,2]
[339018662,1727130672195,-687.6,0.00033388,7]
[339018663,1727130672204,-2500.0,0.00033392,5]
[339018664,1727130672213,-184.75,0.000334,7]
[339018665,1727130672222,-1000.0,0.00033421,5]
[339018666,1727130672231,-500.0,0.00033421,5]
[339018667,1727130672240,-457.24130705,0.00033421,5]
[339018668,1727130672250,-376.33839844,0.00033421,5]
[339018669,1727130672259,-611.04577296,0.00033421,5]
[339018670,1727130672269,-188.20230846,0.00033421,5]
[339018671,1727130672278,-1000.0,0.00033421,5]
[339018672,1727130672287,-173.71500864,0.00033421,5]
[339018673,1727130672296,-1000.0,0.00033421,5]
[339018674,1727130672306,-1000.0,0.00033421,5]
[339018675,1727130672315,-500.0,0.00033424,30]
[339018676,1727130672324,-719.75,0.00033424,30]
[339018677,1727130672333,-500.0,0.00033424,30]
[339018678,1727130672343,-969.66,0.00033424,30]
[339018679,1727130672352,-711.06,0.00033424,30]
[339018680,1727130672481,-514.47,0.00033424,30]
[339018681,1727130672491,-513.89,0.00033424,30]
[339018682,1727130672501,-500.0,0.00033424,2]
[339018683,1727130672510,-584.13,0.00033424,30]
[339018684,1727130672520,-500.0,0.00033424,30]
[339018685,1727130672537,-519.49804086,0.00033424,30]
[339018686,1727130672547,-500.0,0.00033424,30]
[339018687,1727130672556,-984.17,0.00033424,30]
[339018688,1727130672566,-683.52,0.00033424,30]
[339018689,1727130672575,-500.0,0.00033424,30]
[339018690,1727130672584,-500.0,0.00033424,30]
[339018691,1727130672593,-500.0,0.00033424,30]
[339018692,1727130672602,-610.08,0.00033424,30]
[339018693,1727130672612,-1045.6,0.00033424,7]
[339018694,1727130672621,-859.64,0.00033424,30]
[339018695,1727130672630,-1071.88,0.00033424,30]
[339018696,1727130672639,-607.11,0.00033424,30]
[339018697,1727130672647,-500.0,0.00033424,30]
[339018698,1727130672656,-593.65926069,0.00033424,30]
[339018699,1727130672666,-500.0,0.00033424,30]
[339018700,1727130672675,-500.0,0.00033424,30]
[339018701,1727130672685,-500.0,0.00033424,30]
[339018702,1727130672694,-500.0,0.00033424,30]
[339018703,1727130672703,-500.0,0.00033424,30]
[339018704,1727130672712,-520.8,0.00033424,30]
[339018705,1727130672721,-678.42,0.00033424,30]
[339018706,1727130672730,-500.0,0.00033424,30]
[339018707,1727130672739,-581.01,0.00033424,30]
[339018708,1727130672747,-500.0,0.00033424,30]
[339018709,1727130672757,-500.0,0.00033424,30]
[339018710,1727130672766,-624.97,0.00033424,30]
[339018711,1727130672785,-500.0,0.00033424,30]
[339018712,1727130672794,-500.0,0.00033424,30]
[339018713,1727130672803,-746.07,0.00033424,30]
[339018714,1727130672816,-500.0,0.00033424,30]
[339018715,1727130672825,-500.0,0.00033424,30]
[339018716,1727130672834,-606.75,0.00033424,30]
[339018717,1727130672843,-500.0,0.00033424,30]
[339018718,1727130672853,-500.0,0.00033424,7]
[339018719,1727130672862,-500.0,0.00033424,30]
[339018720,1727130672871,-500.0,0.00033424,30]
[339018721,1727130672880,-500.0,0.00033424,30]
[339018722,1727130672890,-460.35283347,0.00033424,30]
[339018723,1727130672899,-500.0,0.00033424,30]
[339018724,1727130672909,-500.0,0.00033424,30]
[339018725,1727130672918,-500.0,0.00033424,30]
[339018726,1727130672927,-572.02,0.00033424,30]
[339018727,1727130672937,-500.0,0.00033424,30]
[339018728,1727130672946,-527.38,0.00033424,30]
[339018729,1727130672956,-500.0,0.00033424,30]
[339018730,1727130672965,-501.70910792,0.00033424,30]
[339018731,1727130672974,-500.0,0.00033424,30]
[339018732,1727130672983,-500.0,0.00033424,30]
[339018733,1727130672992,-2283.61,0.00033424,30]
[339018734,1727130673001,-500.0,0.00033424,30]
[339018735,1727130673010,-500.0,0.00033424,30]
[339018736,1727130673020,-500.82516217,0.00033424,30]
[339018737,1727130673030,-500.0,0.00033424,30]
[339018738,1727130673039,-500.0,0.00033424,30]
[339018739,1727130673049,-500.0,0.00033424,30]
[339018740,1727130673058,-500.0,0.00033424,30]
[339018741,1727130673067,-729.07,0.00033424,25]
[339018742,1727130673076,-500.0,0.00033424,30]
[339018743,1727130673085,-500.0,0.00033424,30]
[339018744,1727130673095,-500.0,0.00033424,30]
[339018745,1727130673105,-502.74435686,0.00033424,30]
[339018746,1727130673114,-500.0,0.00033424,30]
[339018747,1727130673124,-500.0,0.00033424,30]
[339018748,1727130673134,-500.0,0.00033424,30]
[339018749,1727130673143,-500.0,0.00033424,30]
[339018750,1727130673152,-500.0,0.00033424,30]
[339018751,1727130673161,-500.0,0.00033424,30]
[339018752,1727130673172,-500.0,0.00033424,30]
[339018753,1727130673182,-500.0,0.00033424,30]
[339018754,1727130673191,-497.53221854,0.00033424,30]
[339018755,1727130673201,-500.0,0.00033424,30]
[339018756,1727130673210,-500.0,0.00033424,30]
[339018757,1727130673219,-500.0,0.00033424,30]
[339018758,1727130673228,-500.0,0.00033424,30]
[339018759,1727130673238,-500.0,0.00033424,30]
[339018760,1727130673247,-500.0,0.00033424,30]
[339018761,1727130673256,-500.0,0.00033424,30]
[339018762,1727130673265,-500.0,0.00033424,30]
[339018763,1727130673275,-500.76476398,0.00033424,12]
[339018764,1727130673285,-639.96,0.00033424,30]
[339018765,1727130673295,-3024.97,0.00033424,30]
[339018766,1727130673305,-500.0,0.00033424,30]
[339018767,1727130673314,-500.0,0.00033424,30]
[339018768,1727130673324,-500.0,0.00033424,30]
[339018769,1727130673333,-501.69607968,0.00033424,12]
[339018770,1727130673342,-500.0,0.00033424,30]
[339018771,1727130673351,-500.0,0.00033424,30]
[339018772,1727130673360,-1122.08,0.00033424,30]
[339018773,1727130673370,-500.0,0.00033424,30]
[339018774,1727130673379,-539.27668004,0.00033424,30]
[339018775,1727130673389,-500.0,0.00033424,30]
[339018776,1727130673399,-500.0,0.00033424,30]
[339018777,1727130673408,-500.0,0.00033424,30]
[339018778,1727130673417,-500.0,0.00033424,30]
[339018779,1727130673426,-554.23693384,0.00033424,30]
[339018780,1727130673436,-500.0,0.00033424,30]
[339018781,1727130673445,-500.0,0.00033424,30]
[339018782,1727130673454,-500.0,0.00033424,30]
[339018783,1727130673464,-500.0,0.00033424,120]
[339018784,1727130673473,-500.0,0.00033424,2]
[339018785,1727130673482,-500.0,0.00033424,30]
[339018786,1727130673491,-655.57,0.00033424,30]
[339018787,1727130673501,-500.0,0.00033424,30]
[339018788,1727130673510,-500.0,0.00033424,30]
[339018789,1727130673520,-500.0,0.00033424,30]
[339018790,1727130673530,-500.0,0.00033424,30]
[339018791,1727130673539,-500.0,0.00033424,30]
[339018792,1727130673548,-500.0,0.00033424,30]
[339018793,1727130673558,-500.0,0.00033424,30]
[339018794,1727130673568,-500.0,0.00033424,30]
[339018795,1727130673576,-500.0,0.00033424,30]
[339018796,1727130673586,-500.0,0.00033424,30]
[339018797,1727130673595,-428.33824811,0.00033424,30]
[339018798,1727130673605,-500.0,0.00033424,30]
[339018799,1727130673613,-532.96,0.00033424,30]
[339018800,1727130673623,-500.0,0.00033424,30]
[339018801,1727130673633,-500.0,0.00033424,30]
[339018802,1727130673642,-500.0,0.00033424,30]
[339018803,1727130673651,-500.0,0.00033424,30]
[339018804,1727130673660,-500.0,0.00033424,30]
[339018805,1727130673669,-625.74,0.00033424,30]
[339018806,1727130673678,-224.36418794,0.00033424,30]
[339018807,1727130673687,-500.0,0.00033424,30]
[339018808,1727130673697,-500.0,0.00033424,30]
[339018809,1727130673706,-500.0,0.00033424,30]
[339018810,1727130673716,-783.45,0.00033424,30]
[339018811,1727130673725,-500.0,0.00033424,30]
[339018812,1727130673734,-500.0,0.00033424,30]
[339018813,1727130673743,-1230.74,0.00033424,30]
[339018814,1727130673753,-500.0,0.00033424,30]
[339018815,1727130673762,-1846.29,0.00033424,30]
[339018816,1727130673773,-500.0,0.00033424,30]
[339018817,1727130673782,-1397.17,0.00033424,2]
[339018818,1727130673791,-500.0,0.00033424,30]
[339018819,1727130673801,-500.0,0.00033424,30]
[339018820,1727130673812,-684.0,0.00033424,30]
[339018821,1727130673822,-500.0,0.00033424,30]
[339018822,1727130673831,-604.33,0.00033424,30]
[339018823,1727130673840,-500.0,0.00033424,30]
[339018824,1727130673851,-500.0,0.00033424,30]
[339018825,1727130673860,-519.07510605,0.00033424,30]
[339018826,1727130673869,-196.57123291,0.00033424,30]
[339018827,1727130673878,-201.26632817,0.00033424,30]
[339018828,1727130673889,-334.68260422,0.00033424,30]
[339018829,1727130673899,-500.0,0.00033424,30]
[339018830,1727130673909,-500.0,0.00033424,30]
[339018831,1727130673919,-288.57091013,0.00033424,30]
[339018832,1727130673928,-426.23,0.00033424,30]
[339018833,1727130673937,-506.03389792,0.00033424,30]
[339018834,1727130673946,-1000.0,0.00033424,120]
[339018835,1727130673956,-825.29,0.00033424,30]
[339018836,1727130673965,-500.0,0.00033424,5]
[339018837,1727130673975,-624.72,0.00033424,30]
[339018838,1727130673984,-500.0,0.00033424,30]
[339018839,1727130673994,-500.0,0.00033424,30]
[339018840,1727130674004,-248.98,0.00033424,30]
[339018841,1727130674013,-500.0,0.00033424,30]
[339018842,1727130674024,-500.0,0.00033424,30]
[339018843,1727130674033,-514.15,0.00033424,30]
[339018844,1727130674042,-500.0,0.00033424,30]
[339018845,1727130674051,-500.0,0.00033424,30]
[339018846,1727130674060,-500.0,0.00033424,30]
[339018847,1727130674068,-500.0,0.00033424,30]
[339018848,1727130674078,-500.0,0.00033424,30]
[339018849,1727130674088,-500.0,0.00033424,30]
[339018850,1727130674097,-500.0,0.00033424,30]
[339018851,1727130674106,-500.0,0.00033424,30]
[339018852,1727130674115,-503.86863484,0.00033424,30]
[339018853,1727130674124,-636.97042574,0.00033424,30]
[339018854,1727130674134,-741.53,0.00033424,30]
[339018855,1727130674143,-500.0,0.00033424,30]
[339018856,1727130674152,-292.04480636,0.00033424,30]
[339018857,1727130674162,-500.0,0.00033424,30]
[339018858,1727130674171,-500.0,0.00033424,30]
[339018859,1727130674180,-500.0,0.00033424,120]
[339018860,1727130674189,-500.0,0.00033424,30]
[339018861,1727130674198,-500.0,0.00033424,30]
[339018862,1727130674207,-500.0,0.00033424,30]
[339018863,1727130674217,-1260.11,0.00033424,30]
[339018864,1727130674226,-500.0,0.00033424,30]
[339018865,1727130674235,-500.0,0.00033424,30]
[339018866,1727130674245,-545.43,0.00033424,30]
[339018867,1727130674254,-500.0,0.00033424,30]
[339018868,1727130674263,-500.0,0.00033424,30]
[339018869,1727130674274,-536.2,0.00033424,30]
[339018870,1727130674283,-500.0,0.00033424,30]
[339018871,1727130674292,-1484.78,0.00033424,30]
[339018872,1727130674302,-500.0,0.00033424,30]
[339018873,1727130674312,-500.0,0.00033424,30]
[339018874,1727130674322,-4278.99,0.00033424,21]
[339018875,1727130674331,-500.0,0.00033424,30]
[339018876,1727130674341,-500.0,0.00033424,30]
[339018877,1727130674350,-500.0,0.00033424,30]
[339018878,1727130674360,-364.7152456,0.00033424,30]
[339018879,1727130674369,-500.0,0.00033424,30]
[339018880,1727130674378,-500.0,0.00033424,30]
[339018881,1727130674387,-500.0,0.00033424,30]
[339018882,1727130674397,-500.0,0.00033424,30]
[339018883,1727130674406,-500.0,0.00033424,30]
[339018884,1727130674415,-500.0,0.00033424,30]
[339018885,1727130674425,-500.0,0.00033424,30]
[339018886,1727130674434,-500.0,0.00033424,30]
[339018887,1727130674443,-729.6,0.00033424,30]
[339018888,1727130674453,-500.0,0.00033424,30]
[339018889,1727130674462,-500.0,0.00033424,30]
[339018890,1727130674471,-500.0,0.00033424,30]
[339018891,1727130674480,-527.26,0.00033424,30]
[339018892,1727130674489,-1276.76,0.00033424,30]
[339018893,1727130674499,-500.0,0.00033424,30]
[339018894,1727130674508,-500.0,0.00033424,30]
[339018895,1727130674518,-500.0,0.00033424,30]
[339018896,1727130674527,-500.0,0.00033424,30]
[339018897,1727130674537,-1463.58,0.00033424,30]
[339018898,1727130674547,-500.0,0.00033424,30]
[339018899,1727130674556,-1844.92,0.00033424,30]
[339018900,1727130674565,-612.36,0.00033424,30]
[339018901,1727130674574,-500.0,0.00033424,30]
[339018902,1727130674583,-500.0,0.00033424,30]
[339018903,1727130674593,-500.0,0.00033424,7]
[339018904,1727130674602,-500.0,0.00033424,30]
[339018905,1727130674614,-500.0,0.00033424,30]
[339018906,1727130674624,-500.0,0.00033424,30]
[339018907,1727130674633,-500.0,0.00033424,30]
[339018908,1727130674642,-500.0,0.00033424,30]
[339018909,1727130674651,-500.0,0.00033424,30]
[339018910,1727130674660,-500.0,0.00033424,30]
[339018911,1727130674669,-500.0,0.00033424,30]
[339018912,1727130674678,-500.0,0.00033424,30]
[339018913,1727130674687,-500.0,0.00033424,30]
[339018914,1727130674696,-1266.01,0.00033424,30]
[339018915,1727130674705,-500.0,0.00033424,30]
[339018916,1727130674715,-500.0,0.00033424,30]
[339018917,1727130674724,-1200.54,0.00033424,30]
[339018918,1727130674733,-500.0,0.00033424,30]
[339018919,1727130674742,-501.9,0.00033424,30]
[339018920,1727130674751,-500.0,0.00033424,30]
[339018921,1727130674760,-500.0,0.00033424,30]
[339018922,1727130674771,-1081.62,0.00033424,30]
[339018923,1727130674780,-500.0,0.00033424,30]
[339018924,1727130674789,-409.22594421,0.00033424,30]
[339018925,1727130674798,-500.0,0.00033424,30]
[339018926,1727130674809,-500.0,0.00033424,30]
[339018927,1727130674819,-500.0,0.00033424,30]
[339018928,1727130674829,-500.0,0.00033424,30]
[339018929,1727130674838,-593.26574819,0.00033424,30]
[339018930,1727130674847,-1820.79,0.00033424,7]
[339018931,1727130674969,-500.0,0.00033424,30]
[339018932,1727130674979,-694.3,0.00033424,30]
[339018933,1727130674988,-500.0,0.00033424,30]
[339018934,1727130674998,-500.0,0.00033424,30]
[339018935,1727130675008,-500.0,0.00033424,30]
[339018936,1727130675017,-242.37511717,0.00033424,30]
[339018937,1727130675027,-1532.58,0.00033424,30]
[339018938,1727130675037,-1035.06,0.00033424,30]
[339018939,1727130675046,-40342.48,0.00033424,18]
[339018940,1727130675056,-500.0,0.00033424,30]
[339018941,1727130675065,-500.0,0.00033424,2]
[339018942,1727130675074,-736.16,0.00033424,30]
[339018943,1727130675083,-500.0,0.00033424,30]
[339018944,1727130675093,-500.0,0.00033424,30]
[339018945,1727130675102,-208.977489,0.00033452,2]
[339018946,1727130675111,-208.977489,0.00033452,2]
[339018947,1727130675122,-208.977489,0.00033452,2]
[339018948,1727130675131,-157.46,0.000335,30]
[339018949,1727130675141,-7357.12,0.000335,14]
[339018950,1727130675151,-1966.29,0.000335,14]
[339018951,1727130675160,-3008.61,0.000335,14]
[339018952,1727130675169,-184.0,0.000335,7]
[339018953,1727130675179,-420.0,0.000335,120]
[339018954,1727130675189,-208.977489,0.00033507,2]
[339018955,1727130675198,-208.977489,0.00033507,2]
[339018956,1727130675207,-261.31736027,0.00033561,30]
[339018957,1727130675219,-719.75,0.00033561,30]
[339018958,1727130675228,-500.0,0.00033561,30]
[339018959,1727130675237,-969.66,0.00033561,30]
[339018960,1727130675247,-711.06,0.00033561,30]
[339018961,1727130675256,-514.47,0.00033561,30]
[339018962,1727130675265,-513.89,0.00033561,30]
[339018963,1727130675275,-500.0,0.00033561,2]
[339018964,1727130675285,-584.13,0.00033561,30]
[339018965,1727130675294,-500.0,0.00033561,30]
[339018966,1727130675303,-473.559757,0.00033561,30]
[339018967,1727130675312,-984.17,0.00033561,30]
[339018968,1727130675321,-683.52,0.00033561,30]
[339018969,1727130675330,-500.0,0.00033561,30]
[339018970,1727130675339,-500.0,0.00033561,30]
[339018971,1727130675348,-610.08,0.00033561,30]
[339018972,1727130675357,-1045.6,0.00033561,7]
[339018973,1727130675366,-859.64,0.00033561,30]
[339018974,1727130675376,-1071.88,0.00033561,30]
[339018975,1727130675385,-607.11,0.00033561,30]
[339018976,1727130675395,-500.0,0.00033561,30]
[339018977,1727130675404,-500.0,0.00033561,30]
[339018978,1727130675413,-500.0,0.00033561,30]
[339018979,1727130675422,-500.0,0.00033561,30]
[339018980,1727130675431,-500.0,0.00033561,30]
[339018981,1727130675440,-500.0,0.00033561,30]
[339018982,1727130675449,-678.42,0.00033561,30]
[339018983,1727130675458,-520.8,0.00033561,30]
[339018984,1727130675467,-500.0,0.00033561,30]
[339018985,1727130675477,-581.01,0.00033561,30]
[339018986,1727130675486,-500.0,0.00033561,30]
[339018987,1727130675496,-500.0,0.00033561,30]
[339018988,1727130675505,-624.97,0.00033561,30]
[339018989,1727130675514,-500.0,0.00033561,30]
[339018990,1727130675524,-500.0,0.00033561,30]
[339018991,1727130675534,-746.07,0.00033561,30]
[339018992,1727130675543,-500.0,0.00033561,30]
[339018993,1727130675552,-500.0,0.00033561,30]
[339018994,1727130675561,-606.75,0.00033561,30]
[339018995,1727130675571,-500.0,0.00033561,30]
[339018996,1727130675580,-383.72410219,0.00033561,7]
[339018997,1727130675589,-500.0,0.00033561,30]
[339018998,1727130675598,-500.0,0.00033561,30]
[339018999,1727130675607,-500.0,0.00033561,30]
[339019000,1727130675618,-500.0,0.00033561,30]
[339019001,1727130675627,-500.0,0.00033561,30]
[339019002,1727130675636,-500.0,0.00033561,30]
[339019003,1727130675646,-572.02,0.00033561,30]
[339019004,1727130675654,-500.0,0.00033561,30]
[339019005,1727130675663,-527.38,0.00033561,30]
[339019006,1727130675673,-500.0,0.00033561,30]
[339019007,1727130675682,-500.0,0.00033561,30]
[339019008,1727130675691,-2283.61,0.00033561,30]
[339019009,1727130675700,-500.0,0.00033561,30]
[339019010,1727130675709,-500.0,0.00033561,30]
[339019011,1727130675718,-500.0,0.00033561,30]
[339019012,1727130675728,-500.0,0.00033561,30]
[339019013,1727130675737,-500.0,0.00033561,30]
[339019014,1727130675746,-500.0,0.00033561,30]
[339019015,1727130675755,-729.07,0.00033561,25]
[339019016,1727130675765,-500.0,0.00033561,30]
[339019017,1727130675780,-500.0,0.00033561,30]
[339019018,1727130675794,-500.0,0.00033561,30]
[339019019,1727130675804,-500.0,0.00033561,30]
[339019020,1727130675816,-500.0,0.00033561,30]
[339019021,1727130675826,-331.40431596,0.00033561,30]
[339019022,1727130675835,-500.0,0.00033561,30]
[339019023,1727130675844,-500.0,0.00033561,30]
[339019024,1727130675854,-500.0,0.00033561,30]
[339019025,1727130675863,-500.0,0.00033561,30]
[339019026,1727130675872,-500.0,0.00033561,30]
[339019027,1727130675882,-500.0,0.00033561,30]
[339019028,1727130675891,-500.0,0.00033561,30]
[339019029,1727130675901,-500.0,0.00033561,30]
[339019030,1727130675910,-500.0,0.00033561,30]
[339019031,1727130675919,-500.0,0.00033561,30]
[339019032,1727130675929,-500.0,0.00033561,30]
[339019033,1727130675939,-500.0,0.00033561,30]
[339019034,1727130675948,-500.0,0.00033561,30]
[339019035,1727130675958,-639.96,0.00033561,30]
[339019036,1727130675967,-3024.97,0.00033561,30]
[339019037,1727130675977,-500.0,0.00033561,30]
[339019038,1727130675986,-500.0,0.00033561,30]
[339019039,1727130675996,-500.0,0.00033561,30]
[339019040,1727130676005,-500.0,0.00033561,30]
[339019041,1727130676014,-500.0,0.00033561,30]
[339019042,1727130676027,-1122.08,0.00033561,30]
[339019043,1727130676036,-500.0,0.00033561,30]
[339019044,1727130676046,-628.75,0.00033561,30]
[339019045,1727130676056,-500.0,0.00033561,30]
[339019046,1727130676066,-500.0,0.00033561,30]
[339019047,1727130676075,-500.0,0.00033561,30]
[339019048,1727130676085,-500.0,0.00033561,30]
[339019049,1727130676094,-500.0,0.00033561,30]
[339019050,1727130676104,-500.0,0.00033561,30]
[339019051,1727130676113,-500.0,0.00033561,120]
[339019052,1727130676123,-500.0,0.00033561,2]
[339019053,1727130676132,-500.0,0.00033561,30]
[339019054,1727130676141,-655.57,0.00033561,30]
[339019055,1727130676151,-500.0,0.00033561,30]
[339019056,1727130676161,-500.0,0.00033561,30]
[339019057,1727130676170,-500.0,0.00033561,30]
[339019058,1727130676180,-500.0,0.00033561,30]
[339019059,1727130676191,-500.0,0.00033561,30]
[339019060,1727130676201,-500.0,0.00033561,30]
[339019061,1727130676211,-500.0,0.00033561,30]
[339019062,1727130676220,-500.0,0.00033561,30]
[339019063,1727130676230,-500.0,0.00033561,30]
[339019064,1727130676239,-500.0,0.00033561,30]
[339019065,1727130676248,-500.0,0.00033561,30]
[339019066,1727130676258,-532.96,0.00033561,30]
[339019067,1727130676269,-500.0,0.00033561,30]
[339019068,1727130676279,-500.0,0.00033561,30]
[339019069,1727130676288,-500.0,0.00033561,30]
[339019070,1727130676298,-500.0,0.00033561,30]
[339019071,1727130676307,-500.0,0.00033561,30]
[339019072,1727130676317,-625.74,0.00033561,30]
[339019073,1727130676326,-500.0,0.00033561,30]
[339019074,1727130676337,-520.21533246,0.00033561,30]
[339019075,1727130676347,-500.0,0.00033561,30]
[339019076,1727130676357,-783.45,0.00033561,30]
[339019077,1727130676367,-500.0,0.00033561,30]
[339019078,1727130676377,-500.0,0.00033561,30]
[339019079,1727130676388,-1230.74,0.00033561,30]
[339019080,1727130676397,-500.0,0.00033561,30]
[339019081,1727130676407,-1846.29,0.00033561,30]
[339019082,1727130676417,-500.0,0.00033561,30]
[339019083,1727130676426,-1397.17,0.00033561,2]
[339019084,1727130676436,-500.0,0.00033561,30]
[339019085,1727130676446,-500.0,0.00033561,30]
[339019086,1727130676456,-684.0,0.00033561,30]
[339019087,1727130676466,-366.05020312,0.00033561,30]
[339019088,1727130676475,-604.33,0.00033561,30]
[339019089,1727130676485,-500.0,0.00033561,30]
[339019090,1727130676495,-500.0,0.00033561,30]
[339019091,1727130676504,-500.0,0.00033561,30]
[339019092,1727130676514,-500.0,0.00033561,30]
[339019093,1727130676524,-1000.0,0.00033561,120]
[339019094,1727130676534,-825.29,0.00033561,30]
[339019095,1727130676544,-322.43506261,0.00033561,5]
[339019096,1727130676554,-624.72,0.00033561,30]
[339019097,1727130676563,-500.0,0.00033561,30]
[339019098,1727130676573,-500.0,0.00033561,30]
[339019099,1727130676582,-248.98,0.00033561,30]
[339019100,1727130676592,-500.0,0.00033561,30]
[339019101,1727130676602,-514.15,0.00033561,30]
[339019102,1727130676611,-500.0,0.00033561,30]